[Event "GER-ch Youth U10 2020"]
[Site "Willingen"]
[Date "2020.10.31"]
[Round "7.18"]
[White "Meng, Yuxuan"]
[Black "Nemitz, Alfred"]
[Result "1-0"]
[ECO "C42"]
[WhiteElo "1515"]
[BlackElo "1287"]
[Annotator "NA RC"]
[PlyCount "107"]
[EventDate "2020.10.27"]
[EventType "swiss"]
[EventRounds "7"]
[EventCountry "GER"]
[SourceTitle "playchess.com"]
[Source "ChessBase"]
[SourceQuality "1"]
[TimeControl "40/4500+30:900+30"]

1. e4 {[%emt 0:00:00]} e5 {[%emt 0:00:00]} 2. Nf3 {[%emt 0:00:00]} Nf6 {[%emt 0:00:00]} 3. Nxe5 {[%emt 0:00:00]} d6 {[%emt 0:00:00]} 4. Nf3 {[%emt 0:00:00]} Nxe4 {[%emt 0:00:06]} 5. Nc3 {[%emt 0:00:00]} Nxc3 {[%emt 0:00:25]} 6. dxc3 {[%emt 0:00:00]} Be7 {[%emt 0:01:00]} 7. Bd3 {[%emt 0:00:12]} O-O {[%emt 0:01:50]} 8. Be3 {[%emt 0:00:15]} Nc6 {[%emt 0:05:37]} 9. Qd2 {[%emt 0:00:58]} Ne5 {[%emt 0:04:59]} 10. Nxe5 {[%emt 0:00:41]} dxe5 {[%emt 0:00:08]} 11. O-O-O {[%emt 0:00:21]} f5 {[%emt 0:01:30]} 12. Bc4+ {[%emt 0:15:10]} Kh8 {[%emt 0:00:11]} 13. Qxd8 {[%emt 0:05:56]} Bxd8 {[%emt 0:03:27]} 14. Bc5 {[%emt 0:00:20]} Bg5+ {[%emt 0:00:18]} 15. f4 {[%emt 0:03:44]} Bxf4+ {[%emt 0:04:57]} 16. Kb1 {[%emt 0:00:06]} Re8 {[%emt 0:02:56]} 17. Bf7 {[%emt 0:01:21]} Be6 {[%emt 0:00:25]} 18. Bxe8 {[%emt 0:00:37]} Rxe8 {[%emt 0:00:07]} 19. g3 {[%emt 0:01:15]} Bg5 {[%emt 0:00:16]} 20. Rhe1 {[%emt 0:06:13]} Bf6 {[%emt 0:03:59]} 21. b3 {[%emt 0:04:05]} b6 {[%emt 0:03:29]} 22. Be3 {[%emt 0:01:22]} g5 {[%emt 0:01:13]} 23. Rd2 {[%emt 0:13:52]} f4 {[%emt 0:01:01]} 24. gxf4 {[%emt 0:00:44]} gxf4 {[%emt 0:02:00]} 25. Bxf4 {[%emt 0:00:47]} exf4 {[%emt 0:00:37]} 26. Rde2 {[%emt 0:00:16]} Bxc3 {[%emt 0:09:33]} 27. Rxe6 {[%emt 0:00:13]} Rxe6 {[%emt 0:00:05]} 28. Rxe6 {[%emt 0:00:06]} f3 {[%emt 0:01:31]} 29. Re3 {[%emt 0:00:10]} f2 {[%emt 0:00:07]} 30. Rf3 {[%emt 0:00:24]} Be1 {[%emt 0:01:11]} 31. Kc1 {[%emt 0:01:50]} Kg7 {[%emt 0:01:10]} 32. Kd1 {[%emt 0:01:07]} a5 {[%emt 0:04:12]} 33. Ke2 {[%emt 0:03:01]} h6 {[%emt 0:02:47]} 34. Rd3 {[%emt 0:03:06]} Bb4 {[%emt 0:01:28]} 35. Kxf2 {[%emt 0:04:27]} Bd6 {[%emt 0:00:08]} 36. h3 {[%emt 0:00:22]} Be5 {[%emt 0:03:18]} 37. Ke3 {[%emt 0:05:53]} Kf6 {[%emt 0:02:30]} 38. Ke4 {[%emt 0:00:34]} Bd6 {[%emt 0:01:03]} 39. Kd5 {[%emt 0:02:08]} Kg5 {[%emt 0:01:02]} 40. c4 {[%emt 0:02:59]} Kh4 {[%emt 0:01:57]} 41. Ke6 {[%emt 0:18:29]} h5 {[%emt 0:17:24]} 42. Kf5 {[%emt 0:00:22]} Bc5 {[%emt 0:00:57]} 43. Kg6 {[%emt 0:01:06]} Bg1 {[%emt 0:03:56]} 44. Rd7 {[%emt 0:01:44]} Kxh3 {[%emt 0:01:50]} 45. Kxh5 {[%emt 0:00:09]} Bh2 {[%emt 0:02:23]} 46. Kg5 {[%emt 0:00:13]} Bd6 {[%emt 0:02:00]} 47. Kf5 {[%emt 0:00:25]} Kg3 48. Ke4 Kf2 {[%emt 0:01:07]} 49. Kd5 {[%emt 0:00:46]} Ke3 {[%emt 0:00:08]} 50. Rxd6 {[%emt 0:00:30]} cxd6 {[%emt 0:00:04]} 51. Kxd6 {[%emt 0:00:12]} Kd4 {[%emt 0:01:52]} 52. Kc6 {[%emt 0:00:19]} a4 {[%emt 0:00:14]} 53. bxa4 {[%emt 0:00:41]} Kxc4 {[%emt 0:00:07]} 54. Kxb6 {[%emt 0:00:07]} 1-0

[Event "GER-ch Youth U10 2020"]
[Site "Willingen"]
[Date "2020.10.31"]
[Round "7.19"]
[White "Rosenkranz, Lennard"]
[Black "Mohammadzadeh, Daris"]
[Result "1/2-1/2"]
[ECO "B34"]
[WhiteElo "1467"]
[BlackElo "1311"]
[Annotator "NA RC"]
[PlyCount "58"]
[EventDate "2020.10.27"]
[EventType "swiss"]
[EventRounds "7"]
[EventCountry "GER"]
[SourceTitle "playchess.com"]
[Source "ChessBase"]
[SourceQuality "1"]
[TimeControl "40/4500+30:900+30"]

1. e4 {[%emt 0:00:00]} c5 {[%emt 0:00:00]} 2. Nf3 {[%emt 0:00:00]} g6 {[%emt 0:00:00]} 3. d4 {[%emt 0:00:40]} cxd4 {[%emt 0:00:20]} 4. Nxd4 {[%emt 0:00:12]} Nc6 {[%emt 0:00:23]} 5. Nc3 {[%emt 0:00:30]} Bg7 {[%emt 0:00:21]} 6. Be3 {[%emt 0:00:16]} Nf6 {[%emt 0:01:46]} 7. f3 {[%emt 0:01:49]} O-O {[%emt 0:03:07]} 8. Bc4 {[%emt 0:01:44]} e6 {[%emt 0:03:48]} 9. Ndb5 {[%emt 0:19:20]} a6 {[%emt 0:05:00]} 10. Nd6 {[%emt 0:00:13]} Ne8 {[%emt 0:01:39]} 11. O-O {[%emt 0:11:21]} b5 {[%emt 0:06:38]} 12. Bb3 {[%emt 0:04:31]} Nxd6 {[%emt 0:05:21]} 13. Qxd6 {[%emt 0:00:10]} Qe7 {[%emt 0:05:04]} 14. Qxe7 Nxe7 {[%emt 0:00:09]} 15. Rfe1 {[%emt 0:03:50]} Rb8 {[%emt 0:03:56]} 16. Ba7 {[%emt 0:05:49]} Rb7 {[%emt 0:02:37]} 17. Bc5 {[%emt 0:00:10]} Re8 {[%emt 0:02:30]} 18. Rab1 {[%emt 0:00:45]} Rc7 {[%emt 0:04:24]} 19. Bb4 {[%emt 0:02:10]} Bxc3 {[%emt 0:06:07]} 20. Bxc3 {[%emt 0:00:29]} Nc6 {[%emt 0:00:50]} 21. Rbd1 {[%emt 0:02:19]} a5 {[%emt 0:02:10]} 22. a3 {[%emt 0:02:10]} a4 {[%emt 0:03:55]} 23. Ba2 {[%emt 0:00:31]} Ba6 {[%emt 0:01:47]} 24. Rd6 {[%emt 0:04:49]} Rec8 {[%emt 0:03:09]} 25. Red1 {[%emt 0:01:47]} Nb8 {[%emt 0:03:02]} 26. Bb1 {[%emt 0:00:44]} Rc6 {[%emt 0:01:08]} 27. h3 {[%emt 0:02:13]} h5 {[%emt 0:01:32]} 28. Kh2 {[%emt 0:01:15]} h4 {[%emt 0:01:10]} 29. Bf6 {[%emt 0:03:27]} Rxd6 {[%emt 0:02:33]} 1/2-1/2

[Event "GER-ch Youth U10 2020"]
[Site "Willingen"]
[Date "2020.10.31"]
[Round "7.20"]
[White "Klasen, Ennio Rodriguez"]
[Black "Sewerinow, Alexander"]
[Result "1-0"]
[ECO "B50"]
[WhiteElo "1297"]
[BlackElo "1202"]
[Annotator "NA RC"]
[PlyCount "59"]
[EventDate "2020.10.27"]
[EventType "swiss"]
[EventRounds "7"]
[EventCountry "GER"]
[SourceTitle "playchess.com"]
[Source "ChessBase"]
[SourceQuality "1"]
[TimeControl "40/4500+30:900+30"]

1. e4 {[%emt 0:00:00]} c5 {[%emt 0:00:00]} 2. Nf3 {[%emt 0:01:13]} d6 {[%emt 0:00:00]} 3. h3 {[%emt 0:01:17]} Nf6 {[%emt 0:00:21]} 4. Nc3 {[%emt 0:00:49]} g6 {[%emt 0:00:37]} 5. Bc4 {[%emt 0:01:17]} Bg7 {[%emt 0:01:28]} 6. O-O {[%emt 0:00:51]} O-O {[%emt 0:01:51]} 7. d3 {[%emt 0:01:19]} Nc6 {[%emt 0:00:37]} 8. Bg5 {[%emt 0:03:11]} a6 {[%emt 0:04:01]} 9. a4 {[%emt 0:01:58]} a5 {[%emt 0:02:53]} (9... h6 $11 10. Be3 Be6) 10. Qd2 {[%emt 0:01:39]} Nb4 {[%emt 0:00:54]} 11. Rad1 {[%emt 0:07:01]} b6 {[%emt 0:00:40]} 12. Rfe1 {[%emt 0:04:22]} Ba6 {[%emt 0:12:02]} 13. Bxa6 {[%emt 0:04:43]} Rxa6 {[%emt 0:02:15]} 14. Re2 {[%emt 0:03:11]} Re8 $16 {[%emt 0:10:01]} 15. Rde1 {[%emt 0:02:01]} Nd7 {[%emt 0:00:25]} 16. Nb5 {[%emt 0:02:44]} Qa8 {[%emt 0:03:39]} 17. Nc7 {[%emt 0:00:50]} Qc8 {[%emt 0:00:47]} 18. Nxe8 {[%emt 0:00:39]} Qxe8 {[%emt 0:00:07]} 19. c3 {[%emt 0:02:20]} Nc6 {[%emt 0:00:17]} 20. d4 {[%emt 0:01:43]} cxd4 {[%emt 0:00:13]} 21. cxd4 {[%emt 0:00:23]} Nb4 {[%emt 0:01:36]} 22. e5 {[%emt 0:02:24]} d5 {[%emt 0:01:05]} 23. e6 {[%emt 0:01:09]} Nf6 {[%emt 0:04:17]} 24. exf7+ {[%emt 0:00:45]} Qxf7 {[%emt 0:00:26]} 25. Rxe7 {[%emt 0:00:33]} Qf8 {[%emt 0:00:07]} 26. Bxf6 {[%emt 0:00:40]} Qxf6 {[%emt 0:00:10]} 27. R1e6 {[%emt 0:01:50]} Qf5 {[%emt 0:01:34]} 28. Nh4 {[%emt 0:06:38]} Qh5 {[%emt 0:03:38]} 29. Re8+ {[%emt 0:00:50]} Kf7 {[%emt 0:01:36]} 30. Qf4+ 1-0

[Event "GER-ch Youth U10 2020"]
[Site "Willingen"]
[Date "2020.10.31"]
[Round "7.21"]
[White "Ahlers, Quentin"]
[Black "Deiringer, Julius"]
[Result "1-0"]
[ECO "C54"]
[WhiteElo "1425"]
[BlackElo "1332"]
[Annotator "NA RC"]
[PlyCount "101"]
[EventDate "2020.10.27"]
[EventType "swiss"]
[EventRounds "7"]
[EventCountry "GER"]
[SourceTitle "playchess.com"]
[Source "ChessBase"]
[SourceQuality "1"]
[TimeControl "40/4500+30:900+30"]

1. e4 {[%emt 0:00:00]} e5 {[%emt 0:00:00]} 2. Nf3 {[%emt 0:00:00]} Nc6 {[%emt 0:00:00]} 3. Bc4 {[%emt 0:00:00]} Bc5 {[%emt 0:00:00]} 4. c3 {[%emt 0:00:00]} Nf6 {[%emt 0:00:07]} 5. d3 {[%emt 0:00:00]} a6 {[%emt 0:00:28]} 6. a4 {[%emt 0:00:12]} d6 {[%emt 0:00:16]} 7. h3 {[%emt 0:00:08]} Ba7 {[%emt 0:00:13]} 8. b4 {[%emt 0:00:16]} Qe7 {[%emt 0:00:22]} 9. O-O {[%emt 0:00:35]} O-O {[%emt 0:00:24]} 10. Re1 {[%emt 0:00:11]} Nd8 {[%emt 0:00:30]} 11. Qb3 {[%emt 0:00:51]} Be6 {[%emt 0:00:17]} 12. Nbd2 {[%emt 0:00:36]} c6 {[%emt 0:03:25]} 13. d4 {[%emt 0:01:49]} Bxc4 {[%emt 0:01:44]} 14. Qxc4 {[%emt 0:00:46]} Re8 {[%emt 0:04:01]} 15. dxe5 {[%emt 0:02:10]} dxe5 {[%emt 0:00:24]} 16. Nf1 {[%emt 0:00:31]} c5 {[%emt 0:03:40]} 17. Ng3 {[%emt 0:02:37]} Rc8 {[%emt 0:02:33]} 18. Nf5 {[%emt 0:00:49]} Qc7 {[%emt 0:02:04]} 19. Qb3 {[%emt 0:01:32]} cxb4 {[%emt 0:04:50]} 20. cxb4 {[%emt 0:00:27]} Qc2 {[%emt 0:01:32]} 21. Qxc2 {[%emt 0:02:09]} Rxc2 {[%emt 0:00:21]} 22. Ne3 {[%emt 0:01:21]} Bxe3 {[%emt 0:01:40]} 23. Bxe3 {[%emt 0:00:19]} Nxe4 {[%emt 0:00:55]} 24. Bb6 {[%emt 0:00:25]} Nf6 {[%emt 0:02:38]} 25. Rxe5 {[%emt 0:00:28]} Rxe5 {[%emt 0:00:25]} 26. Nxe5 {[%emt 0:00:26]} Ne6 {[%emt 0:00:29]} 27. b5 {[%emt 0:02:09]} Rb2 {[%emt 0:02:05]} 28. Rc1 {[%emt 0:00:08]} h6 {[%emt 0:00:44]} 29. bxa6 {[%emt 0:01:07]} Rxb6 {[%emt 0:01:07]} 30. a7 {[%emt 0:00:20]} Ra6 {[%emt 0:00:58]} 31. Rc8+ {[%emt 0:00:19]} Nf8 {[%emt 0:00:15]} 32. a8=Q {[%emt 0:00:35]} Rxa8 {[%emt 0:00:40]} 33. Rxa8 {[%emt 0:00:09]} b6 {[%emt 0:04:01]} 34. Rb8 {[%emt 0:00:46]} h5 {[%emt 0:03:24]} 35. Rxb6 {[%emt 0:00:12]} Nd5 {[%emt 0:00:16]} 36. Rb8 {[%emt 0:00:14]} Nf6 {[%emt 0:00:27]} 37. a5 {[%emt 0:00:08]} N6h7 {[%emt 0:02:21]} 38. a6 {[%emt 0:00:54]} Nf6 {[%emt 0:00:19]} 39. a7 {[%emt 0:00:11]} N6h7 {[%emt 0:00:08]} 40. a8=Q {[%emt 0:00:21]} g6 {[%emt 0:00:23]} 41. Nd7 {[%emt 0:15:07]} Kg7 {[%emt 0:15:22]} 42. Nxf8 {[%emt 0:00:12]} Nxf8 {[%emt 0:00:07]} 43. Rxf8 {[%emt 0:00:12]} Kh6 {[%emt 0:00:06]} 44. h4 {[%emt 0:00:13]} Kg7 {[%emt 0:00:09]} 45. Rh8 {[%emt 0:00:43]} Kf6 {[%emt 0:00:05]} 46. Qa5 {[%emt 0:04:59]} Ke6 47. Rh7 {[%emt 0:00:11]} Kf6 {[%emt 0:00:25]} 48. Qa2 {[%emt 0:00:26]} Kf5 {[%emt 0:00:12]} 49. Rxf7+ {[%emt 0:00:28]} Kg4 {[%emt 0:00:11]} 50. g3 {[%emt 0:00:28]} Kh3 {[%emt 0:00:09]} 51. Qe6# 1-0

[Event "GER-ch Youth U10 2020"]
[Site "Willingen"]
[Date "2020.10.31"]
[Round "7.22"]
[White "Blumenthal Tuset, Sebastian"]
[Black "Hellenbroich, Hanno"]
[Result "1/2-1/2"]
[ECO "B23"]
[WhiteElo "1453"]
[BlackElo "1291"]
[Annotator "NA RC"]
[PlyCount "83"]
[EventDate "2020.10.27"]
[EventType "swiss"]
[EventRounds "7"]
[EventCountry "GER"]
[SourceTitle "playchess.com"]
[Source "ChessBase"]
[SourceQuality "1"]
[TimeControl "40/4500+30:900+30"]

1. e4 {[%emt 0:00:00]} c5 {[%emt 0:00:00]} 2. Nc3 {[%emt 0:00:00]} d6 {[%emt 0:00:07]} 3. g3 {[%emt 0:00:31]} g6 {[%emt 0:00:45]} 4. Bg2 {[%emt 0:01:16]} Bg7 {[%emt 0:01:57]} 5. d3 {[%emt 0:03:32]} Nf6 {[%emt 0:00:31]} 6. Be3 {[%emt 0:04:58]} O-O {[%emt 0:03:29]} 7. h3 {[%emt 0:04:40]} Qb6 {[%emt 0:02:51]} 8. Qc1 {[%emt 0:02:59]} Nbd7 {[%emt 0:01:09]} 9. Nge2 {[%emt 0:02:44]} Nb8 {[%emt 0:06:23]} 10. O-O {[%emt 0:02:10]} Nc6 {[%emt 0:00:18]} 11. Bd2 {[%emt 0:06:25]} Be6 {[%emt 0:03:00]} 12. Rb1 {[%emt 0:07:07]} Qc7 {[%emt 0:02:54]} 13. Bh6 {[%emt 0:02:45]} Nd4 {[%emt 0:03:43]} 14. Nxd4 {[%emt 0:03:46]} cxd4 {[%emt 0:00:18]} 15. Bxg7 {[%emt 0:02:12]} Kxg7 {[%emt 0:01:29]} 16. Nd5 {[%emt 0:01:36]} Bxd5 {[%emt 0:05:08]} 17. exd5 {[%emt 0:00:13]} Rac8 {[%emt 0:00:17]} 18. c3 {[%emt 0:02:22]} dxc3 {[%emt 0:00:24]} 19. Qxc3 {[%emt 0:00:11]} Qxc3 {[%emt 0:00:05]} 20. bxc3 {[%emt 0:00:07]} Rxc3 {[%emt 0:00:06]} 21. Rxb7 {[%emt 0:00:16]} Rxd3 {[%emt 0:02:14]} 22. Rxa7 {[%emt 0:00:44]} Nxd5 {[%emt 0:00:36]} 23. Bxd5 {[%emt 0:00:43]} Rxd5 {[%emt 0:00:27]} 24. Rxe7 {[%emt 0:00:15]} Rd8 {[%emt 0:00:43]} 25. a4 {[%emt 0:01:42]} Ra5 {[%emt 0:00:20]} 26. Re4 {[%emt 0:01:07]} d5 {[%emt 0:01:49]} 27. Rd4 {[%emt 0:00:11]} Rd7 28. Rb1 Rda7 {[%emt 0:05:36]} 29. Rb5 {[%emt 0:01:51]} Rxa4 {[%emt 0:00:07]} 30. Rxa4 {[%emt 0:00:22]} Rxa4 {[%emt 0:00:16]} 31. Rxd5 {[%emt 0:00:07]} h5 {[%emt 0:01:24]} 32. Kg2 {[%emt 0:01:51]} Ra3 {[%emt 0:01:05]} 33. Re5 {[%emt 0:01:27]} Rb3 {[%emt 0:01:03]} 34. Re3 {[%emt 0:00:23]} Rb4 {[%emt 0:00:18]} 35. Kf3 {[%emt 0:01:25]} Rb2 {[%emt 0:01:20]} 36. Re2 {[%emt 0:01:19]} Rb3+ {[%emt 0:00:10]} 37. Re3 {[%emt 0:00:12]} Rb2 {[%emt 0:00:18]} 38. Kg2 {[%emt 0:00:48]} Rb1 {[%emt 0:00:23]} 39. g4 {[%emt 0:00:50]} Rb5 {[%emt 0:01:22]} 40. gxh5 {[%emt 0:01:27]} Rxh5 {[%emt 0:00:15]} 41. Rg3 {[%emt 0:15:19]} Kh6 {[%emt 0:19:26]} 42. f4 {[%emt 0:02:01]} 1/2-1/2

[Event "GER-ch Youth U10 2020"]
[Site "Willingen"]
[Date "2020.10.31"]
[Round "7.23"]
[White "Peglau, Paul David"]
[Black "Kamleiter, Noah"]
[Result "1/2-1/2"]
[ECO "E43"]
[WhiteElo "1322"]
[BlackElo "1573"]
[Annotator "NA RC"]
[PlyCount "45"]
[EventDate "2020.10.27"]
[EventType "swiss"]
[EventRounds "7"]
[EventCountry "GER"]
[SourceTitle "playchess.com"]
[Source "ChessBase"]
[SourceQuality "1"]
[TimeControl "40/4500+30:900+30"]

1. d4 {[%emt 0:00:00]} Nf6 {[%emt 0:00:00]} 2. c4 {[%emt 0:00:00]} e6 {[%emt 0:00:00]} 3. Nc3 {[%emt 0:00:00]} Bb4 {[%emt 0:00:00]} 4. e3 {[%emt 0:00:08]} b6 {[%emt 0:00:09]} 5. Bd3 {[%emt 0:00:33]} Bb7 {[%emt 0:00:19]} 6. Nf3 {[%emt 0:00:08]} O-O {[%emt 0:01:44]} 7. O-O {[%emt 0:00:14]} d6 {[%emt 0:00:40]} 8. a3 {[%emt 0:00:46]} Bxc3 {[%emt 0:00:23]} 9. bxc3 {[%emt 0:03:52]} Nbd7 {[%emt 0:01:15]} 10. Rb1 {[%emt 0:00:15]} Re8 {[%emt 0:01:26]} 11. a4 {[%emt 0:02:01]} e5 {[%emt 0:01:05]} 12. Bc2 {[%emt 0:00:54]} e4 {[%emt 0:00:27]} 13. Nd2 {[%emt 0:00:43]} a5 {[%emt 0:05:50]} 14. Qe2 {[%emt 0:00:54]} Ba6 {[%emt 0:00:33]} 15. Ba3 {[%emt 0:01:56]} c5 {[%emt 0:03:16]} 16. Rfd1 {[%emt 0:04:27]} Qc7 {[%emt 0:05:34]} 17. h3 {[%emt 0:02:54]} Re7 {[%emt 0:04:52]} 18. Rb2 {[%emt 0:05:24]} Rae8 {[%emt 0:03:54]} 19. Rdb1 {[%emt 0:07:06]} Nd5 {[%emt 0:00:58]} 20. Rb3 {[%emt 0:03:12]} N5f6 {[%emt 0:01:54]} 21. R1b2 {[%emt 0:04:38]} Bb7 {[%emt 0:02:04]} 22. Rb1 {[%emt 0:03:33]} Bc6 {[%emt 0:06:28]} 23. R3b2 1/2-1/2

[Event "GER-ch Youth U10 2020"]
[Site "Willingen"]
[Date "2020.10.31"]
[Round "7.24"]
[White "Bock, Leonas"]
[Black "Uyar, Levin"]
[Result "1-0"]
[ECO "D02"]
[WhiteElo "1301"]
[BlackElo "1471"]
[Annotator "NA RC"]
[PlyCount "65"]
[EventDate "2020.10.27"]
[EventType "swiss"]
[EventRounds "7"]
[EventCountry "GER"]
[SourceTitle "playchess.com"]
[Source "ChessBase"]
[SourceQuality "1"]
[TimeControl "40/4500+30:900+30"]

1. d4 {[%emt 0:00:00]} Nf6 {[%emt 0:00:00]} 2. Bf4 {[%emt 0:00:00]} d5 {[%emt 0:00:00]} 3. Nf3 {[%emt 0:00:13]} Bf5 {[%emt 0:00:20]} 4. e3 {[%emt 0:00:56]} e6 {[%emt 0:00:09]} 5. h3 {[%emt 0:00:34]} Bd6 {[%emt 0:00:11]} 6. Bxd6 {[%emt 0:01:33]} Qxd6 {[%emt 0:00:21]} 7. c3 {[%emt 0:00:16]} Qb6 {[%emt 0:00:36]} 8. b3 {[%emt 0:03:55]} Nbd7 {[%emt 0:04:44]} 9. Bd3 {[%emt 0:02:50]} Be4 {[%emt 0:04:07]} 10. Qc2 {[%emt 0:07:49]} Bxf3 {[%emt 0:01:24]} 11. gxf3 {[%emt 0:00:08]} O-O-O {[%emt 0:00:48]} 12. Nd2 {[%emt 0:03:17]} e5 {[%emt 0:01:38]} 13. a4 {[%emt 0:02:49]} Rhe8 {[%emt 0:04:05]} 14. Kf1 {[%emt 0:07:18]} Kb8 {[%emt 0:06:50]} 15. a5 {[%emt 0:06:54]} Qc6 {[%emt 0:00:32]} 16. Kg2 {[%emt 0:03:28]} Nh5 {[%emt 0:00:35]} 17. Rhc1 {[%emt 0:01:13]} g6 {[%emt 0:02:42]} 18. b4 {[%emt 0:00:50]} exd4 {[%emt 0:04:19]} 19. cxd4 {[%emt 0:00:19]} Qxc2 {[%emt 0:00:31]} 20. Rxc2 {[%emt 0:00:10]} Re7 {[%emt 0:02:23]} 21. b5 {[%emt 0:01:34]} Rde8 {[%emt 0:00:46]} 22. Rb2 {[%emt 0:06:35]} b6 {[%emt 0:01:10]} 23. axb6 {[%emt 0:00:58]} Nxb6 {[%emt 0:00:16]} 24. Rba2 {[%emt 0:02:31]} Nc8 {[%emt 0:00:13]} 25. Nb3 {[%emt 0:01:29]} Re6 {[%emt 0:20:39]} 26. Na5 {[%emt 0:04:58]} Ne7 {[%emt 0:02:16]} 27. Nc6+ {[%emt 0:01:15]} Nxc6 {[%emt 0:00:25]} 28. bxc6 {[%emt 0:00:04]} R8e7 {[%emt 0:00:23]} 29. Rxa7 {[%emt 0:00:30]} Rxc6 30. Ra8+ Kb7 {[%emt 0:03:44]} 31. R1a7+ {[%emt 0:00:51]} Kb6 {[%emt 0:00:11]} 32. Ba6 {[%emt 0:02:25]} Rc2 {[%emt 0:02:26]} 33. Bc8 {[%emt 0:00:23]} 1-0

[Event "GER-ch Youth U10 2020"]
[Site "Willingen"]
[Date "2020.10.31"]
[Round "7.25"]
[White "Goldkuhle, Collin"]
[Black "Zimmer, Tim"]
[Result "0-1"]
[ECO "C54"]
[WhiteElo "1418"]
[BlackElo "1025"]
[Annotator "NA RC"]
[PlyCount "120"]
[EventDate "2020.10.27"]
[EventType "swiss"]
[EventRounds "7"]
[EventCountry "GER"]
[SourceTitle "playchess.com"]
[Source "ChessBase"]
[SourceQuality "1"]
[TimeControl "40/4500+30:900+30"]

1. e4 {[%emt 0:00:00]} e5 2. Nf3 {[%emt 0:00:00]} Nc6 {[%emt 0:00:00]} 3. Bc4 {[%emt 0:00:00]} Bc5 {[%emt 0:00:00]} 4. c3 {[%emt 0:00:00]} Nf6 {[%emt 0:00:27]} 5. d4 {[%emt 0:00:01]} exd4 {[%emt 0:00:11]} 6. e5 {[%emt 0:00:09]} d5 {[%emt 0:02:53]} 7. Bb5 {[%emt 0:00:16]} Ne4 {[%emt 0:02:39]} 8. cxd4 {[%emt 0:01:15]} Bb4+ {[%emt 0:03:43]} 9. Nbd2 {[%emt 0:00:38]} Bd7 {[%emt 0:11:44]} 10. Qa4 {[%emt 0:00:55]} Qe7 {[%emt 0:02:11]} 11. a3 {[%emt 0:02:52]} Bxd2+ {[%emt 0:06:03]} 12. Bxd2 {[%emt 0:05:11]} Nxd2 {[%emt 0:03:45]} 13. Nxd2 {[%emt 0:00:26]} a6 {[%emt 0:00:10]} 14. Nf3 {[%emt 0:05:16]} O-O {[%emt 0:01:44]} 15. Bxc6 {[%emt 0:00:11]} Bxc6 {[%emt 0:00:07]} 16. Qc2 {[%emt 0:00:14]} f6 {[%emt 0:14:02]} 17. O-O {[%emt 0:00:20]} f5 {[%emt 0:07:04]} 18. Rfe1 {[%emt 0:10:40]} Qe6 {[%emt 0:01:57]} 19. Rad1 {[%emt 0:02:58]} Rae8 {[%emt 0:04:31]} 20. Qc5 {[%emt 0:00:31]} Qg6 {[%emt 0:01:16]} 21. Qa5 {[%emt 0:02:01]} Re6 {[%emt 0:08:23]} 22. Kh1 {[%emt 0:01:29]} Rf7 {[%emt 0:00:45]} 23. Qd2 {[%emt 0:00:47]} f4 {[%emt 0:00:52]} 24. Rc1 {[%emt 0:04:52]} h5 {[%emt 0:04:25]} 25. h4 {[%emt 0:00:49]} Qg4 {[%emt 0:01:54]} 26. Rg1 {[%emt 0:01:02]} Rg6 {[%emt 0:01:05]} 27. Rc3 {[%emt 0:00:59]} Bd7 {[%emt 0:03:34]} 28. Rxc7 {[%emt 0:01:13]} Bf5 {[%emt 0:00:16]} 29. Rc8+ {[%emt 0:01:08]} Bxc8 {[%emt 0:00:15]} 30. Qc3 {[%emt 0:01:36]} Bf5 {[%emt 0:00:27]} 31. Nh2 {[%emt 0:00:50]} Qxh4 {[%emt 0:00:35]} 32. Qe1 {[%emt 0:10:04]} Be4 {[%emt 0:02:18]} 33. Qf1 {[%emt 0:10:16]} Qg5 {[%emt 0:01:18]} 34. b3 {[%emt 0:04:59]} h4 {[%emt 0:00:48]} 35. f3 {[%emt 0:05:44]} Bf5 {[%emt 0:00:20]} 36. Qf2 {[%emt 0:05:19]} Qg3 {[%emt 0:00:39]} 37. Qe2 {[%emt 0:02:02]} h3 {[%emt 0:00:13]} 38. Nf1 {[%emt 0:01:14]} Qg5 {[%emt 0:00:50]} 39. e6 {[%emt 0:01:09]} Re7 {[%emt 0:00:22]} 40. g4 {[%emt 0:00:21]} Rgxe6 {[%emt 0:00:33]} 41. Qd1 {[%emt 0:15:25]} Re1 {[%emt 0:15:27]} 42. Qd2 {[%emt 0:00:29]} R7e2 {[%emt 0:00:23]} 43. Qc3 {[%emt 0:01:23]} Rc2 {[%emt 0:00:43]} 44. Qxe1 {[%emt 0:00:17]} Bg6 {[%emt 0:00:00]} 45. Nd2 {[%emt 0:00:00]} Qh6 {[%emt 0:00:00]} 46. b4 {[%emt 0:00:00]} b5 {[%emt 0:00:00]} 47. Nb3 {[%emt 0:00:00]} Rb2 {[%emt 0:00:00]} 48. Nc5 {[%emt 0:00:00]} h2 {[%emt 0:00:00]} 49. Rf1 {[%emt 0:00:00]} Qh3 {[%emt 0:00:00]} 50. Rf2 {[%emt 0:00:00]} Rb1 {[%emt 0:00:00]} 51. Qxb1 {[%emt 0:00:00]} Bxb1 {[%emt 0:00:00]} 52. Nxa6 {[%emt 0:00:00]} Qg3 {[%emt 0:00:00]} 53. Rxh2 {[%emt 0:00:00]} Qxf3+ {[%emt 0:00:00]} 54. Kg1 {[%emt 0:00:00]} Bd3 {[%emt 0:00:00]} 55. Rf2 {[%emt 0:00:00]} Qg3+ {[%emt 0:00:00]} 56. Rg2 {[%emt 0:00:00]} Qh3 {[%emt 0:00:00]} 57. Nc7 {[%emt 0:00:00]} f3 {[%emt 0:00:00]} 58. Rf2 {[%emt 0:00:00]} Qg3+ {[%emt 0:00:14]} 59. Kh1 {[%emt 0:00:00]} Qxf2 {[%emt 0:00:07]} 60. Nxb5 {[%emt 0:00:00]} Qg2# {[%emt 0:00:13]} 0-1

[Event "GER-ch Youth U10 2020"]
[Site "Willingen"]
[Date "2020.10.31"]
[Round "7.26"]
[White "Huang, Luca Hanson"]
[Black "Conrad, Marius"]
[Result "1-0"]
[ECO "D00"]
[WhiteElo "1570"]
[BlackElo "1645"]
[Annotator "NA RC"]
[PlyCount "65"]
[EventDate "2020.10.27"]
[EventType "swiss"]
[EventRounds "7"]
[EventCountry "GER"]
[SourceTitle "playchess.com"]
[Source "ChessBase"]
[SourceQuality "1"]
[TimeControl "40/4500+30:900+30"]

1. d4 {[%emt 0:00:00]} d5 {[%emt 0:00:00]} 2. Bf4 {[%emt 0:00:00]} Nf6 {[%emt 0:00:02]} 3. e3 {[%emt 0:00:00]} c5 {[%emt 0:00:36]} 4. c3 {[%emt 0:00:11]} Nc6 {[%emt 0:00:26]} 5. Nd2 {[%emt 0:00:16]} Bf5 {[%emt 0:00:32]} 6. Ngf3 {[%emt 0:01:06]} Qb6 {[%emt 0:01:14]} 7. Qb3 {[%emt 0:00:45]} c4 {[%emt 0:00:30]} 8. Qxb6 {[%emt 0:00:50]} axb6 {[%emt 0:00:16]} 9. Be2 {[%emt 0:00:13]} h6 {[%emt 0:01:32]} 10. O-O {[%emt 0:01:59]} e6 {[%emt 0:00:48]} 11. b3 {[%emt 0:01:21]} b5 {[%emt 0:01:02]} 12. bxc4 {[%emt 0:11:29]} bxc4 {[%emt 0:04:00]} 13. Ne5 {[%emt 0:04:48]} Nxe5 {[%emt 0:02:02]} 14. Bxe5 {[%emt 0:00:27]} Be7 {[%emt 0:00:19]} 15. f3 {[%emt 0:06:04]} b5 {[%emt 0:06:25]} 16. Bxf6 {[%emt 0:01:44]} Bxf6 {[%emt 0:00:21]} 17. e4 {[%emt 0:00:04]} Bg6 {[%emt 0:02:47]} 18. Rfe1 {[%emt 0:04:02]} O-O {[%emt 0:01:27]} 19. g3 {[%emt 0:02:54]} Ra3 {[%emt 0:01:39]} 20. Nb1 {[%emt 0:01:50]} Ra6 {[%emt 0:01:06]} 21. e5 {[%emt 0:01:50]} Be7 {[%emt 0:01:47]} 22. f4 {[%emt 0:04:21]} b4 {[%emt 0:00:47]} 23. cxb4 {[%emt 0:03:32]} Bxb4 {[%emt 0:01:18]} 24. Rc1 {[%emt 0:02:39]} Rc8 {[%emt 0:02:49]} 25. g4 {[%emt 0:02:32]} Bxb1 {[%emt 0:04:07]} 26. Rcxb1 {[%emt 0:01:59]} Bc3 {[%emt 0:00:42]} 27. Rc1 {[%emt 0:01:39]} Bxa1 {[%emt 0:00:10]} 28. Rxa1 {[%emt 0:00:04]} c3 {[%emt 0:00:25]} 29. Bxa6 {[%emt 0:00:04]} Kf8 {[%emt 0:01:02]} 30. Bd3 {[%emt 0:01:25]} Rc6 {[%emt 0:00:10]} 31. Rc1 {[%emt 0:00:20]} Ke7 {[%emt 0:00:12]} 32. Bb5 {[%emt 0:00:11]} Kd7 33. Ra1 1-0